fUST/lending_fUST_20260527
["ID","MTS","AMOUNT","RATE_DAILY","PERIOD"]
[423144273,1779892249000,-151.0,0.00013699,2]
[423144277,1779892249000,-151.0,0.00013699,2]
[423144288,1779892249000,-190.376229,0.00013699,2]
[423144287,1779892249000,-190.376229,0.00013699,2]
[423144279,1779892249000,-193.853294,0.00013699,2]
[423144276,1779892249000,-203.271546,0.00013699,2]
[423144278,1779892249000,-151.0,0.00013699,2]
[423144280,1779892249000,-6352.782774,0.00013699,2]
[423144282,1779892249000,-190.376229,0.00013699,2]
[423144281,1779892249000,-190.376229,0.00013699,2]
[423144285,1779892249000,-190.376229,0.00013699,2]
[423144284,1779892249000,-190.376229,0.00013699,2]
[423144283,1779892249000,-190.376229,0.00013699,2]
[423144286,1779892249000,-190.376229,0.00013699,2]
[423144290,1779892249000,-190.376229,0.00013699,2]
[423144292,1779892249000,-190.376229,0.00013699,2]
[423144289,1779892249000,-190.376229,0.00013699,2]
[423144291,1779892249000,-190.376229,0.00013699,2]
[423144294,1779892249000,-190.376229,0.00013699,2]
[423144293,1779892249000,-190.376229,0.00013699,2]
[423144298,1779892249000,-190.376229,0.00013699,2]
[423144299,1779892249000,-190.376229,0.00013699,2]
[423144296,1779892249000,-190.376229,0.00013699,2]
[423144297,1779892249000,-190.376229,0.00013699,2]
[423144235,1779892249000,-311.970239,0.00013699,2]
[423144268,1779892249000,-151.0,0.00013699,2]
[423144275,1779892249000,-151.0,0.00013699,2]
[423144295,1779892249000,-190.376229,0.00013699,2]
[423144274,1779892249000,-151.0,0.00013699,2]
[423144265,1779892249000,-2411.345096,0.00013699,2]
[423144232,1779892249000,-311.970239,0.00013699,2]
[423144239,1779892249000,-2411.345096,0.00013699,2]
[423144240,1779892249000,-311.970239,0.00013699,2]
[423144245,1779892249000,-2411.345096,0.00013699,2]
[423144243,1779892249000,-311.970239,0.00013699,2]
[423144242,1779892249000,-2411.345096,0.00013699,2]
[423144244,1779892249000,-215.108835,0.00013699,2]
[423144247,1779892249000,-215.108835,0.00013699,2]
[423144241,1779892249000,-215.108835,0.00013699,2]
[423144246,1779892249000,-311.970243,0.00013699,2]
[423144248,1779892249000,-2411.345096,0.00013699,2]
[423144260,1779892249000,-2411.345096,0.00013699,2]
[423144250,1779892249000,-2411.345096,0.00013699,2]
[423144251,1779892249000,-215.108835,0.00013699,2]
[423144238,1779892249000,-215.108835,0.00013699,2]
[423144253,1779892249000,-215.108835,0.00013699,2]
[423144249,1779892249000,-215.108835,0.00013699,2]
[423144267,1779892249000,-2411.345092,0.00013699,2]
[423144263,1779892249000,-215.108841,0.00013699,2]
[423144259,1779892249000,-215.108835,0.00013699,2]
[423144258,1779892249000,-2411.345096,0.00013699,2]
[423144252,1779892249000,-2411.345096,0.00013699,2]
[423144264,1779892249000,-2411.345096,0.00013699,2]
[423144254,1779892249000,-2411.345096,0.00013699,2]
[423144255,1779892249000,-215.108835,0.00013699,2]
[423144257,1779892249000,-215.108835,0.00013699,2]
[423144262,1779892249000,-2411.345096,0.00013699,2]
[423144266,1779892249000,-2411.345096,0.00013699,2]
[423144261,1779892249000,-215.108835,0.00013699,2]
[423144256,1779892249000,-2411.345096,0.00013699,2]
[423144341,1779892250000,-492.45,0.00013699,2]
[423144339,1779892250000,-492.45,0.00013699,2]
[423144340,1779892250000,-500.0,0.00013699,2]
[423144337,1779892250000,-500.0,0.00013699,2]
[423144332,1779892250000,-249.581506,0.00013699,2]
[423144330,1779892250000,-500.0,0.00013699,2]
[423144333,1779892250000,-492.45,0.00013699,2]
[423144331,1779892250000,-492.45,0.00013699,2]
[423144335,1779892250000,-249.581506,0.00013699,2]
[423144334,1779892250000,-500.0,0.00013699,2]
[423144329,1779892250000,-249.581506,0.00013699,2]
[423144336,1779892250000,-492.45,0.00013699,2]
[423144348,1779892250000,-500.0,0.00013699,2]
[423144345,1779892250000,-500.0,0.00013699,2]
[423144346,1779892250000,-519.087507,0.00013699,2]
[423144344,1779892250000,-492.45,0.00013699,2]
[423144349,1779892250000,-492.45,0.00013699,2]
[423144347,1779892250000,-492.45,0.00013699,2]
[423144352,1779892250000,-492.45,0.00013699,2]
[423144351,1779892250000,-500.0,0.00013699,2]
[423144350,1779892250000,-519.087507,0.00013699,2]
[423144342,1779892250000,-500.0,0.00013699,2]
[423144353,1779892250000,-519.087507,0.00013699,2]
[423144338,1779892250000,-249.581511,0.00013699,2]
[423144355,1779892250000,-519.087507,0.00013699,2]
[423144343,1779892250000,-519.087507,0.00013699,2]
[423144328,1779892250000,-492.45,0.00013699,2]
[423144309,1779892250000,-492.45,0.00013699,2]
[423144320,1779892250000,-249.581506,0.00013699,2]
[423144366,1779892250000,-500.0,0.00013699,2]
[423144301,1779892250000,-249.581506,0.00013699,2]
[423144300,1779892250000,-190.376238,0.00013699,2]
[423144303,1779892250000,-249.581506,0.00013699,2]
[423144312,1779892250000,-249.581506,0.00013699,2]
[423144311,1779892250000,-492.45,0.00013699,2]
[423144314,1779892250000,-249.581506,0.00013699,2]
[423144313,1779892250000,-492.45,0.00013699,2]
[423144302,1779892250000,-249.581506,0.00013699,2]
[423144304,1779892250000,-249.581506,0.00013699,2]
[423144305,1779892250000,-249.581506,0.00013699,2]
[423144307,1779892250000,-492.45,0.00013699,2]
[423144324,1779892250000,-249.581506,0.00013699,2]
[423144306,1779892250000,-249.581506,0.00013699,2]
[423144308,1779892250000,-249.581506,0.00013699,2]
[423144315,1779892250000,-492.45,0.00013699,2]
[423144316,1779892250000,-249.581506,0.00013699,2]
[423144323,1779892250000,-492.45,0.00013699,2]
[423144319,1779892250000,-492.45,0.00013699,2]
[423144325,1779892250000,-492.45,0.00013699,2]
[423144318,1779892250000,-249.581506,0.00013699,2]
[423144326,1779892250000,-249.581506,0.00013699,2]
[423144327,1779892250000,-500.0,0.00013699,2]
[423144322,1779892250000,-249.581506,0.00013699,2]
[423144321,1779892250000,-492.45,0.00013699,2]
[423144317,1779892250000,-492.45,0.00013699,2]
[423144310,1779892250000,-249.581506,0.00013699,2]
[423144354,1779892250000,-500.0,0.00013699,2]
[423144365,1779892250000,-519.087507,0.00013699,2]
[423144402,1779892250000,-151.0,0.00013699,2]
[423144388,1779892250000,-151.0,0.00013699,2]
[423144392,1779892250000,-151.0,0.00013699,2]
[423144385,1779892250000,-151.0,0.00013699,2]
[423144382,1779892250000,-151.0,0.00013699,2]
[423144394,1779892250000,-151.0,0.00013699,2]
[423144396,1779892250000,-151.0,0.00013699,2]
[423144395,1779892250000,-216.668755,0.00013699,2]
[423144398,1779892250000,-151.0,0.00013699,2]
[423144397,1779892250000,-151.0,0.00013699,2]
[423144404,1779892250000,-151.0,0.00013699,2]
[423144399,1779892250000,-151.0,0.00013699,2]
[423144405,1779892250000,-151.0,0.00013699,2]
[423144406,1779892250000,-226.178961,0.00013699,2]
[423144403,1779892250000,-151.0,0.00013699,2]
[423144401,1779892250000,-151.0,0.00013699,2]
[423144400,1779892250000,-151.0,0.00013699,2]
[423144408,1779892250000,-2142.416094,0.00013699,2]
[423144409,1779892250000,-2142.416094,0.00013699,2]
[423144410,1779892250000,-2142.416094,0.00013699,2]
[423144407,1779892250000,-2142.416094,0.00013699,2]
[423144413,1779892250000,-2142.416094,0.00013699,2]
[423144414,1779892250000,-2142.416094,0.00013699,2]
[423144412,1779892250000,-2142.416094,0.00013699,2]
[423144411,1779892250000,-2142.416094,0.00013699,2]
[423144356,1779892250000,-500.0,0.00013699,2]
[423144391,1779892250000,-151.0,0.00013699,2]
[423144389,1779892250000,-151.0,0.00013699,2]
[423144390,1779892250000,-151.0,0.00013699,2]
[423144387,1779892250000,-151.0,0.00013699,2]
[423144359,1779892250000,-500.0,0.00013699,2]
[423144357,1779892250000,-519.087507,0.00013699,2]
[423144358,1779892250000,-500.0,0.00013699,2]
[423144364,1779892250000,-500.0,0.00013699,2]
[423144361,1779892250000,-18880.3313341,0.00013699,2]
[423144363,1779892250000,-519.087507,0.00013699,2]
[423144362,1779892250000,-500.0,0.00013699,2]
[423144360,1779892250000,-519.087507,0.00013699,2]
[423144386,1779892250000,-151.0,0.00013699,2]
[423144368,1779892250000,-500.0,0.00013699,2]
[423144367,1779892250000,-519.087507,0.00013699,2]
[423144369,1779892250000,-519.087507,0.00013699,2]
[423144371,1779892250000,-519.087507,0.00013699,2]
[423144372,1779892250000,-500.0,0.00013699,2]
[423144377,1779892250000,-519.087507,0.00013699,2]
[423144370,1779892250000,-500.0,0.00013699,2]
[423144384,1779892250000,-151.0,0.00013699,2]
[423144393,1779892250000,-151.0,0.00013699,2]
[423144383,1779892250000,-151.0,0.00013699,2]
[423144381,1779892250000,-519.087511,0.00013699,2]
[423144380,1779892250000,-519.087507,0.00013699,2]
[423144379,1779892250000,-519.087507,0.00013699,2]
[423144376,1779892250000,-519.087507,0.00013699,2]
[423144375,1779892250000,-519.087507,0.00013699,2]
[423144373,1779892250000,-519.087507,0.00013699,2]
[423144374,1779892250000,-500.0,0.00013699,2]
[423144378,1779892250000,-519.087507,0.00013699,2]
[423144469,1779892251000,-151.0,0.00013699,2]
[423144457,1779892251000,-1603.208094,0.00013699,2]
[423144459,1779892251000,-1603.208094,0.00013699,2]
[423144454,1779892251000,-1603.208094,0.00013699,2]
[423144446,1779892251000,-9949.972465,0.00013699,2]
[423144455,1779892251000,-1603.208094,0.00013699,2]
[423144448,1779892251000,-1603.208094,0.00013699,2]
[423144451,1779892251000,-1603.208094,0.00013699,2]
[423144450,1779892251000,-1603.208094,0.00013699,2]
[423144453,1779892251000,-1603.208094,0.00013699,2]
[423144456,1779892251000,-1603.208094,0.00013699,2]
[423144470,1779892251000,-164.465848,0.00013699,2]
[423144449,1779892251000,-1603.208094,0.00013699,2]
[423144460,1779892251000,-1603.208094,0.00013699,2]
[423144474,1779892251000,-336.733266,0.00013699,2]
[423144462,1779892251000,-1603.208094,0.00013699,2]
[423144461,1779892251000,-1603.208094,0.00013699,2]
[423144465,1779892251000,-1603.208094,0.00013699,2]
[423144468,1779892251000,-151.0,0.00013699,2]
[423144464,1779892251000,-1603.208094,0.00013699,2]
[423144466,1779892251000,-1603.2081,0.00013699,2]
[423144463,1779892251000,-1603.208094,0.00013699,2]
[423144467,1779892251000,-151.0,0.00013699,2]
[423144471,1779892251000,-336.733266,0.00013699,2]
[423144472,1779892251000,-336.733266,0.00013699,2]
[423144475,1779892251000,-336.733266,0.00013699,2]
[423144482,1779892251000,-336.733266,0.00013699,2]
[423144452,1779892251000,-1603.208094,0.00013699,2]
[423144458,1779892251000,-1603.208094,0.00013699,2]
[423144447,1779892251000,-1603.208094,0.00013699,2]
[423144415,1779892251000,-2142.416094,0.00013699,2]
[423144444,1779892251000,-9949.972457,0.00013699,2]
[423144418,1779892251000,-2142.416094,0.00013699,2]
[423144417,1779892251000,-2142.416094,0.00013699,2]
[423144416,1779892251000,-2142.416094,0.00013699,2]
[423144419,1779892251000,-2142.416094,0.00013699,2]
[423144421,1779892251000,-2142.416094,0.00013699,2]
[423144431,1779892251000,-9949.972457,0.00013699,2]
[423144425,1779892251000,-2142.416094,0.00013699,2]
[423144423,1779892251000,-2142.416094,0.00013699,2]
[423144422,1779892251000,-2142.416094,0.00013699,2]
[423144424,1779892251000,-2142.416094,0.00013699,2]
[423144420,1779892251000,-2142.416094,0.00013699,2]
[423144426,1779892251000,-2142.416085,0.00013699,2]
[423144430,1779892251000,-9949.972457,0.00013699,2]
[423144445,1779892251000,-9949.972457,0.00013699,2]
[423144427,1779892251000,-9949.972457,0.00013699,2]
[423144429,1779892251000,-9949.972457,0.00013699,2]
[423144432,1779892251000,-9949.972457,0.00013699,2]
[423144434,1779892251000,-9949.972457,0.00013699,2]
[423144435,1779892251000,-9949.972457,0.00013699,2]
[423144436,1779892251000,-9949.972457,0.00013699,2]
[423144441,1779892251000,-9949.972457,0.00013699,2]
[423144440,1779892251000,-9949.972457,0.00013699,2]
[423144437,1779892251000,-9949.972457,0.00013699,2]
[423144442,1779892251000,-9949.972457,0.00013699,2]
[423144438,1779892251000,-9949.972457,0.00013699,2]
[423144439,1779892251000,-9949.972457,0.00013699,2]
[423144443,1779892251000,-9949.972457,0.00013699,2]
[423144433,1779892251000,-9949.972457,0.00013699,2]
[423144428,1779892251000,-9949.972457,0.00013699,2]
[423144476,1779892251000,-336.733266,0.00013699,2]
[423144473,1779892251000,-336.733266,0.00013699,2]
[423144479,1779892251000,-336.733266,0.00013699,2]
[423144510,1779892251000,-151.0,0.00013699,2]
[423144516,1779892251000,-151.0,0.00013699,2]
[423144517,1779892251000,-151.0,0.00013699,2]
[423144512,1779892251000,-151.0,0.00013699,2]
[423144518,1779892251000,-151.0,0.00013699,2]
[423144513,1779892251000,-151.0,0.00013699,2]
[423144514,1779892251000,-151.0,0.00013699,2]
[423144515,1779892251000,-151.0,0.00013699,2]
[423144521,1779892251000,-151.0,0.00013699,2]
[423144522,1779892251000,-151.0,0.00013699,2]
[423144528,1779892251000,-151.0,0.00013699,2]
[423144531,1779892251000,-151.0,0.00013699,2]
[423144520,1779892251000,-151.0,0.00013699,2]
[423144525,1779892251000,-151.0,0.00013699,2]
[423144524,1779892251000,-151.0,0.00013699,2]
[423144533,1779892251000,-151.0,0.00013699,2]
[423144523,1779892251000,-151.0,0.00013699,2]
[423144527,1779892251000,-151.0,0.00013699,2]
[423144532,1779892251000,-151.0,0.00013699,2]
[423144526,1779892251000,-151.0,0.00013699,2]
[423144530,1779892251000,-151.0,0.00013699,2]
[423144534,1779892251000,-151.0,0.00013699,2]
[423144535,1779892251000,-151.0,0.00013699,2]
[423144537,1779892251000,-151.0,0.00013699,2]
[423144536,1779892251000,-151.0,0.00013699,2]
[423144538,1779892251000,-151.0,0.00013699,2]
[423144540,1779892251000,-151.0,0.00013699,2]
[423144539,1779892251000,-151.0,0.00013699,2]
[423144477,1779892251000,-336.733266,0.00013699,2]
[423144511,1779892251000,-151.0,0.00013699,2]
[423144508,1779892251000,-151.0,0.00013699,2]
[423144529,1779892251000,-151.0,0.00013699,2]
[423144519,1779892251000,-151.0,0.00013699,2]
[423144481,1779892251000,-336.733266,0.00013699,2]
[423144509,1779892251000,-151.0,0.00013699,2]
[423144478,1779892251000,-336.733266,0.00013699,2]
[423144480,1779892251000,-336.733266,0.00013699,2]
[423144484,1779892251000,-336.733266,0.00013699,2]
[423144494,1779892251000,-151.0,0.00013699,2]
[423144483,1779892251000,-336.733266,0.00013699,2]
[423144486,1779892251000,-336.733266,0.00013699,2]
[423144485,1779892251000,-336.733266,0.00013699,2]
[423144487,1779892251000,-336.733266,0.00013699,2]
[423144489,1779892251000,-336.733266,0.00013699,2]
[423144492,1779892251000,-151.0,0.00013699,2]
[423144490,1779892251000,-336.73326,0.00013699,2]
[423144491,1779892251000,-151.0,0.00013699,2]
[423144541,1779892251000,-151.0,0.00013699,2]
[423144493,1779892251000,-151.0,0.00013699,2]
[423144503,1779892251000,-178.43418103,0.00013699,7]
[423144488,1779892251000,-336.733266,0.00013699,2]
[423144505,1779892251000,-176.13334501,0.00013699,7]
[423144501,1779892251000,-151.0,0.00013699,2]
[423144504,1779892251000,-165.07903808,0.00013699,2]
[423144507,1779892251000,-500.0,0.00013699,2]
[423144499,1779892251000,-151.0,0.00013699,2]
[423144497,1779892251000,-151.0,0.00013699,2]
[423144506,1779892251000,-352.26669002,0.00013699,7]
[423144502,1779892251000,-151.0,0.00013699,2]
[423144496,1779892251000,-151.0,0.00013699,2]
[423144498,1779892251000,-151.0,0.00013699,2]
[423144495,1779892251000,-151.0,0.00013699,2]
[423144500,1779892251000,-151.0,0.00013699,2]
[423144571,1779892252000,-2945.0,0.00013699,2]
[423144569,1779892252000,-2945.0,0.00013699,2]
[423144573,1779892252000,-2945.0,0.00013699,2]
[423144570,1779892252000,-2945.0,0.00013699,2]
[423144572,1779892252000,-2945.0,0.00013699,2]
[423144574,1779892252000,-2945.0,0.00013699,2]
[423144563,1779892252000,-2945.0,0.00013699,2]
[423144576,1779892252000,-2945.0,0.00013699,2]
[423144587,1779892252000,-151.12,0.000137,2]
[423144581,1779892252000,-2945.0,0.00013699,2]
[423144577,1779892252000,-2945.0,0.00013699,2]
[423144586,1779892252000,-2955.53802479,0.00013699,2]
[423144582,1779892252000,-2945.0,0.00013699,2]
[423144580,1779892252000,-2945.0,0.00013699,2]
[423144584,1779892252000,-2945.0,0.00013699,2]
[423144579,1779892252000,-2945.0,0.00013699,2]
[423144578,1779892252000,-2945.0,0.00013699,2]
[423144583,1779892252000,-2945.0,0.00013699,2]
[423144566,1779892252000,-2945.0,0.00013699,2]
[423144585,1779892252000,-2945.0,0.00013699,2]
[423144575,1779892252000,-2945.0,0.00013699,2]
[423144565,1779892252000,-2945.0,0.00013699,2]
[423144561,1779892252000,-227.29321544,0.00013699,2]
[423144564,1779892252000,-2945.0,0.00013699,2]
[423144589,1779892252000,-2980.51176629,0.000137,2]
[423144545,1779892252000,-151.0,0.00013699,2]
[423144546,1779892252000,-151.0,0.00013699,2]
[423144547,1779892252000,-151.0,0.00013699,2]
[423144543,1779892252000,-151.0,0.00013699,2]
[423144542,1779892252000,-151.0,0.00013699,2]
[423144544,1779892252000,-151.0,0.00013699,2]
[423144549,1779892252000,-178.22419365,0.00013699,2]
[423144559,1779892252000,-151.0,0.00013699,2]
[423144560,1779892252000,-189.29945076,0.00013699,2]
[423144548,1779892252000,-151.0,0.00013699,2]
[423144551,1779892252000,-151.0,0.00013699,2]
[423144552,1779892252000,-151.0,0.00013699,2]
[423144553,1779892252000,-151.0,0.00013699,2]
[423144557,1779892252000,-151.0,0.00013699,2]
[423144556,1779892252000,-151.0,0.00013699,2]
[423144550,1779892252000,-151.0,0.00013699,2]
[423144555,1779892252000,-2000.0,0.00013699,7]
[423144558,1779892252000,-151.0,0.00013699,2]
[423144554,1779892252000,-151.0,0.00013699,2]
[423144562,1779892252000,-311.39699246,0.00013699,2]
[423144567,1779892252000,-2945.0,0.00013699,2]
[423144596,1779892252000,-228.47970854,0.00013741,2]
[423144568,1779892252000,-2945.0,0.00013699,2]
[423144598,1779892252000,-406.96664526,0.00013781,2]
[423144621,1779892252000,-28519.36876844,0.00014,2]
[423144620,1779892252000,-151.07,0.00014,2]
[423144616,1779892252000,-160.0,0.00013999,2]
[423144618,1779892252000,-3589.8059207,0.00014,2]
[423144615,1779892252000,-406.96664526,0.00013981,7]
[423144622,1779892252000,-1000.0,0.00014,14]
[423144628,1779892252000,-151.0,0.00013699,2]
[423144626,1779892252000,-151.0,0.00013699,2]
[423144625,1779892252000,-209.84710504,0.000115,2]
[423144627,1779892252000,-151.0,0.00013699,2]
[423144630,1779892252000,-151.0,0.00013699,2]
[423144631,1779892252000,-151.0,0.00013699,2]
[423144629,1779892252000,-151.0,0.00013699,2]
[423144635,1779892252000,-150.0,0.00013699,10]
[423144636,1779892252000,-150.0,0.00013699,10]
[423144634,1779892252000,-150.0,0.00013699,10]
[423144632,1779892252000,-166.237678,0.00013699,2]
[423144633,1779892252000,-150.0,0.00013699,10]
[423144637,1779892252000,-150.0,0.00013699,10]
[423144638,1779892252000,-5402.60089409,0.00014,2]
[423144595,1779892252000,-354.4489284,0.00013715,2]
[423144619,1779892252000,-151.04,0.00014,2]
[423144617,1779892252000,-191.22271738,0.00013999,2]
[423144624,1779892252000,-430.55822974,8.219e-05,2]
[423144612,1779892252000,-769.81453132,0.00013932,7]
[423144600,1779892252000,-151.04,0.000138,2]
[423144597,1779892252000,-406.96664526,0.00013741,2]
[423144614,1779892252000,-210.93117071,0.00013958,17]
[423144599,1779892252000,-210.93117071,0.00013796,15]
[423144590,1779892252000,-414.81834356,0.00013715,2]
[423144591,1779892252000,-396.89268408,0.00013715,7]
[423144593,1779892252000,-528.40003503,0.00013715,7]
[423144592,1779892252000,-477.1674147,0.00013715,2]
[423144594,1779892252000,-598.53589665,0.00013715,5]
[423144602,1779892252000,-2980.51176629,0.000138,2]
[423144601,1779892252000,-151.07,0.000138,2]
[423144588,1779892252000,-150.92,0.000137,2]
[423144606,1779892252000,-5000.0,0.0001386,2]
[423144603,1779892252000,-406.96664526,0.00013821,2]
[423144623,1779892252000,-781334.71014961,0.00014,2]
[423144609,1779892252000,-406.96664526,0.00013901,7]
[423144610,1779892252000,-476.27622319,0.00013932,7]
[423144611,1779892252000,-642.76020121,0.00013932,7]
[423144613,1779892252000,-406.96664526,0.00013941,7]
[423144605,1779892252000,-2121.37300823,0.0001383,7]
[423144604,1779892252000,-2174.434108,0.0001383,2]
[423144607,1779892252000,-406.96664526,0.00013861,7]
[423144608,1779892252000,-2980.51176629,0.000139,2]
[423144640,1779892253000,-677.1788316,0.00014,2]
[423144639,1779892253000,-1166.248629,0.00014,2]
[423148318,1779893432000,-331.64434217,9.589e-05,2]
[423148310,1779893432000,-500.0,8.219e-05,2]
[423148314,1779893432000,-500.0,8.767e-05,2]
[423148308,1779893432000,-500.0,8.219e-05,2]
[423148309,1779893432000,-500.0,8.219e-05,2]
[423148311,1779893432000,-353.01996694,8.493e-05,2]
[423148312,1779893432000,-500.0,8.493e-05,2]
[423148305,1779893432000,-300.0,8.218e-05,2]
[423148316,1779893432000,-500.0,9.315e-05,2]
[423148307,1779893432000,-500.0,8.219e-05,2]
[423148304,1779893432000,-658.47718672,7.778e-05,2]
[423148315,1779893432000,-500.0,9.041e-05,2]
[423148303,1779893432000,-209.71703875,7.739e-05,2]
[423148302,1779893432000,-5000.0,7.7e-05,2]
[423148330,1779893432000,-766.98895499,0.0001046,2]
[423148306,1779893432000,-500.0,8.219e-05,2]
[423148326,1779893432000,-443.0,0.00010262,2]
[423148313,1779893432000,-500.0,8.493e-05,2]
[423148334,1779893432000,-500.0,0.00010499,2]
[423148350,1779893432000,-430.39519366,0.00010797,2]
[423148351,1779893432000,-82.11731739,0.00010797,2]
[423148349,1779893432000,-69.60480634,0.00010797,2]
[423148347,1779893432000,-237.79851103,0.00010797,2]
[423148346,1779893432000,-334.51007825,0.00010797,2]
[423148345,1779893432000,-165.48992175,0.00010797,2]
[423148344,1779893432000,-203.95602357,0.00010797,2]
[423148348,1779893432000,-302.22320771,0.00010797,2]
[423148341,1779893432000,-601.0615991,0.000106,2]
[423148343,1779893432000,-601.0615991,0.000107,2]
[423148337,1779893432000,-305.64666208,0.000105,2]
[423148328,1779893432000,-185.0,0.00010262,2]
[423148332,1779893432000,-500.0,0.00010499,2]
[423148320,1779893432000,-247.46610573,9.739e-05,2]
[423148322,1779893432000,-1416.364,0.00010262,2]
[423148324,1779893432000,-2210.045,0.00010262,2]
[423148339,1779893432000,-601.0615991,0.000105,2]
[423148361,1779893444000,-5000.0,0.00010689,2]
[423148362,1779893444000,-351.38924376,0.00010797,2]
[423148372,1779893447000,-500.0,0.00010798,2]
[423148373,1779893447000,-235.20951306,0.00010798,2]
[423148371,1779893447000,-500.0,0.00010798,2]
[423148370,1779893447000,-500.0,0.00010797,2]
[423148368,1779893447000,-66.49343885,0.00010797,2]
[423148369,1779893447000,-562.43,0.00010797,2]
[423151335,1779894094000,-5000.0,9.782e-05,2]
[423151336,1779894111000,-152.0,9.831e-05,2]
[423151337,1779894128000,-60.2585746,9.831e-05,2]
[423151338,1779894145000,-735.0,9.929e-05,2]
[423151339,1779894161000,-264.79048694,9.93e-05,2]
[423151340,1779894179000,-500.0,9.93e-05,2]
[423151342,1779894226000,71.1049899,4.7e-05,2]
[423151341,1779894226000,99.9054421,4.7e-05,2]
[423151408,1779894632000,-1031.2,6.142e-05,2]
[423151409,1779894632000,-2251.78,6.142e-05,2]
[423151407,1779894632000,-1707.14873027,6.142e-05,2]
[423151431,1779894639000,-307.83117888,9.93e-05,2]
[423151434,1779894639000,-388.44548569,9.93e-05,2]
[423151444,1779894639000,-500.0,9.93e-05,2]
[423151445,1779894639000,-235.20951306,9.93e-05,2]
[423151436,1779894639000,-501.36278766,9.93e-05,2]
[423151433,1779894639000,-500.0,9.93e-05,2]
[423151438,1779894639000,-560.39,9.93e-05,2]
[423151442,1779894639000,-500.0,9.93e-05,2]
[423151441,1779894639000,-500.0,9.93e-05,2]
[423151435,1779894639000,-500.0,9.93e-05,2]
[423151443,1779894639000,-500.0,9.93e-05,2]
[423151440,1779894639000,-580.85,9.93e-05,2]
[423151439,1779894639000,-500.0,9.93e-05,2]
[423151447,1779894639000,-500.0,9.93e-05,2]
[423151432,1779894639000,-500.62658303,9.93e-05,2]
[423151437,1779894639000,-501.38718463,9.93e-05,2]
[423151430,1779894639000,-500.0,9.93e-05,2]
[423151411,1779894639000,-9.87126973,6.142e-05,2]
[423151424,1779894639000,-500.0,9.93e-05,2]
[423151413,1779894639000,-171.010432,6.267e-05,2]
[423151412,1779894639000,-208.01340311,6.235e-05,2]
[423151417,1779894639000,-1546.3726807,9.612e-05,2]
[423151415,1779894639000,-245.45581567,8.235e-05,2]
[423151418,1779894639000,-792.766697,9.698e-05,2]
[423151416,1779894639000,-171.010432,9.4e-05,2]
[423151420,1779894639000,-562.43,9.929e-05,2]
[423151426,1779894639000,-501.00045459,9.93e-05,2]
[423151414,1779894639000,-171.010432,7.834e-05,2]
[423151421,1779894639000,-500.0,9.929e-05,2]
[423151422,1779894639000,-470.17760644,9.93e-05,2]
[423151423,1779894639000,-500.0,9.93e-05,2]
[423151446,1779894639000,-500.0,9.93e-05,2]
[423151428,1779894639000,-500.35104911,9.93e-05,2]
[423151427,1779894639000,-500.42168464,9.93e-05,2]
[423151425,1779894639000,-500.0,9.93e-05,2]
[423151419,1779894639000,-300.0,9.929e-05,2]
[423151448,1779894639000,-500.0,9.93e-05,2]
[423151429,1779894639000,-500.0,9.93e-05,2]
[423151450,1779894639000,-553.42619574,9.93e-05,2]
[423151471,1779894639000,-588.64422639,9.93e-05,2]
[423151472,1779894639000,-588.64422639,9.93e-05,2]
[423151475,1779894639000,-729.51634895,9.93e-05,2]
[423151473,1779894639000,-500.0,9.93e-05,2]
[423151474,1779894639000,-729.51634895,9.93e-05,2]